bitfinex/quotes_BTCUSD_20240823
["timestamp","ask_amount","ask_price","bid_price","bid_amount"]
[1724393109432,0.0022,61119.0,61118.0,0.52322657]
[1724393109658,0.0022,61119.0,61118.0,0.52422657]
[1724393109860,0.0022,61119.0,61118.0,0.52322657]
[1724393109861,0.0012,61119.0,61118.0,0.52322657]
[1724393110284,0.0022,61119.0,61118.0,0.52722657]
[1724393110493,0.0022,61119.0,61118.0,0.01371571]
[1724393111363,0.0653,61119.0,61118.0,0.01371571]
[1724393111566,0.55615,61119.0,61118.0,0.01371571]
[1724393111780,0.55615,61119.0,61118.0,0.32073271]
[1724393111781,0.49305,61119.0,61118.0,0.32073271]
[1724393111995,0.49305,61119.0,61118.0,1.15348998]
[1724393112215,0.49305,61119.0,61118.0,1.16146259]
[1724393112427,0.49305,61119.0,61118.0,1.09396259]
[1724393112640,0.49305,61119.0,61118.0,1.09496259]
[1724393112850,0.49305,61119.0,61118.0,1.09696259]
[1724393113066,0.49305,61119.0,61118.0,1.09296259]
[1724393113067,0.49205,61119.0,61118.0,1.09296259]
[1724393113504,0.49205,61119.0,61118.0,1.10396259]
[1724393113930,0.49205,61119.0,61118.0,1.09296259]
[1724393114139,0.49205,61119.0,61118.0,0.20758961]
[1724393114345,0.49205,61119.0,61118.0,0.53482461]
[1724393114346,0.49105,61119.0,61118.0,0.53482461]
[1724393114529,0.49105,61119.0,61118.0,0.20758961]
[1724393114729,0.49105,61119.0,61118.0,0.22158961]
[1724393114934,0.49105,61119.0,61118.0,0.54882461]
[1724393116090,0.491872,61119.0,61118.0,0.87905961]
[1724393116295,0.491872,61119.0,61118.0,0.54882461]
[1724393116518,0.491872,61119.0,61118.0,0.19858961]
[1724393116745,0.491872,61119.0,61118.0,0.22258961]
[1724393116948,0.491872,61119.0,61118.0,0.54882461]
[1724393117165,0.491872,61119.0,61118.0,0.03497261]
[1724393118050,0.563272,61119.0,61118.0,0.027]
[1724393118689,0.563272,61119.0,61118.0,0.03497261]
[1724393118896,0.563272,61119.0,61118.0,0.77857673]
[1724393119108,0.563272,61119.0,61118.0,0.76557673]
[1724393119344,0.491872,61119.0,61118.0,0.75157673]
[1724393119549,0.491872,61119.0,61118.0,0.76057673]
[1724393120141,0.491872,61119.0,61118.0,0.75957673]
[1724393120347,0.491872,61119.0,61118.0,0.76157673]
[1724393120989,0.491872,61119.0,61118.0,0.75957673]
[1724393121406,0.491872,61119.0,61118.0,0.75157673]
[1724393121840,0.491872,61119.0,61118.0,0.76057673]
[1724393122052,0.491872,61119.0,61118.0,0.75157673]
[1724393122268,0.491872,61119.0,61118.0,0.75957673]
[1724393122478,0.491872,61119.0,61118.0,0.76757673]
[1724393122690,0.491872,61119.0,61118.0,0.75957673]
[1724393122949,0.491872,61119.0,61118.0,0.75157673]
[1724393123134,0.491872,61119.0,61118.0,0.75557673]
[1724393123568,0.571472,61119.0,61118.0,0.75557673]
[1724393123979,0.642172,61119.0,61118.0,0.74760412]
[1724393124392,0.642172,61119.0,61118.0,0.75557673]
[1724393125260,0.642172,61119.0,61118.0,0.75357673]
[1724393125480,0.642172,61119.0,61118.0,0.75157673]
[1724393125702,0.642172,61119.0,61118.0,0.75357673]
[1724393125910,0.642172,61119.0,61118.0,0.75257673]
[1724393126103,0.905787,61119.0,61118.0,0.75257673]
[1724393126295,0.905787,61119.0,61118.0,0.75157673]
[1724393126296,1.233017,61119.0,61118.0,0.75157673]
[1724393126534,0.742172,61119.0,61118.0,1.20380548]
[1724393126791,1.233017,61119.0,61118.0,1.11475438]
[1724393127210,1.233017,61119.0,61118.0,1.18811757]
[1724393127425,1.233017,61119.0,61118.0,0.75160329]
[1724393128051,1.233017,61119.0,61118.0,0.75350639]
[1724393128261,1.233017,61119.0,61118.0,0.75250639]
[1724393128690,1.560247,61119.0,61118.0,0.75250639]
[1724393129106,1.560247,61119.0,61118.0,0.74450722]
[1724393129529,1.560247,61119.0,61118.0,0.75303956]
[1724393130476,1.64091328,61119.0,61118.0,0.75303956]
[1724393130682,1.887477,61119.0,61118.0,0.75303956]
[1724393130886,1.89495495,61119.0,61118.0,0.74450722]
[1724393131096,1.89495495,61119.0,61118.0,0.75303956]
[1724393131318,2.06093373,61119.0,61118.0,0.48428602]
[1724393131547,2.06093373,61119.0,61118.0,0.47293556]
[1724393131972,1.89695495,61119.0,61118.0,0.46968734]
[1724393133025,1.562247,61119.0,61118.0,0.46968734]
[1724393133229,1.567247,61119.0,61118.0,0.46968734]
[1724393133660,1.567247,61119.0,61118.0,0.47068734]
[1724393134772,1.562247,61119.0,61118.0,0.47068734]
[1724393134984,1.567247,61119.0,61118.0,0.47168734]
[1724393135409,1.73122578,61119.0,61118.0,0.47168734]
[1724393137234,2.05845578,61119.0,61118.0,0.27392117]
[1724393137445,1.894477,61119.0,61118.0,0.16509763]
[1724393137663,1.894477,61119.0,61118.0,0.15981351]
[1724393138512,1.567247,61119.0,61118.0,0.15981351]
[1724393139575,1.894477,61119.0,61118.0,0.15981351]
[1724393139788,1.567247,61119.0,61118.0,0.15981351]
[1724393140421,1.73122578,61119.0,61118.0,0.15981351]
[1724393140847,1.73122578,61119.0,61105.0,0.0009042]
[1724393140848,0.49195,61106.0,61105.0,0.0009042]
[1724393141092,1.0664,61106.0,61105.0,0.0009042]
[1724393141322,1.3937,61106.0,61105.0,0.0009042]
[1724393141762,1.55867878,61106.0,61105.0,0.0009042]
[1724393142049,1.65867878,61106.0,61105.0,0.0009042]
[1724393142256,1.65867878,61106.0,61105.0,0.0019042]
[1724393142257,1.5682,61106.0,61105.0,0.0019042]
[1724393142461,1.5632,61106.0,61105.0,0.0009042]
[1724393142672,1.5682,61106.0,61105.0,0.0019042]
[1724393142919,0.75295,61106.0,61105.0,0.0029042]
[1724393143155,0.9166,61106.0,61105.0,0.0029042]
[1724393143358,0.9116,61106.0,61105.0,0.0019042]
[1724393143561,0.74795,61106.0,61105.0,0.0019042]
[1724393143770,0.75295,61106.0,61105.0,0.0029042]
[1724393144228,0.50085,61106.0,61105.0,1.17830738]
[1724393144479,0.50085,61106.0,61105.0,1.62739663]
[1724393144717,0.005,61106.0,61105.0,1.63521152]
[1724393144944,0.017,61106.0,61105.0,1.53842727]
[1724393145150,0.017,61106.0,61105.0,1.21012227]
[1724393145151,0.005,61106.0,61105.0,1.21012227]
[1724393145367,0.005,61106.0,61105.0,1.53742727]
[1724393145577,0.005,61106.0,61105.0,1.33718609]
[1724393145578,0.011,61106.0,61105.0,1.33718609]
[1724393145800,0.001022,61119.0,61118.0,0.322517]
[1724393146015,0.001022,61119.0,61118.0,0.646752]
[1724393146233,0.001022,61119.0,61118.0,0.32584081]
[1724393146450,0.001022,61119.0,61118.0,0.16122381]
[1724393146662,0.001022,61119.0,61118.0,0.16222381]
[1724393146875,0.001022,61119.0,61118.0,0.32584081]
[1724393147116,0.001022,61119.0,61118.0,0.16122381]
[1724393147323,0.001022,61119.0,61118.0,0.16422381]
[1724393147539,0.001022,61119.0,61118.0,0.32484081]
[1724393147758,0.002022,61119.0,61118.0,0.33484081]
[1724393148199,0.002022,61119.0,61118.0,0.33684081]
[1724393148650,0.003022,61119.0,61118.0,0.34784081]
[1724393149061,0.002022,61119.0,61118.0,0.33884081]
[1724393149281,0.003022,61119.0,61118.0,0.34584081]
[1724393150348,0.003022,61119.0,61118.0,0.34784081]
[1724393150772,0.003022,61119.0,61118.0,0.34874391]
[1724393150982,0.003022,61119.0,61118.0,0.35022168]
[1724393151866,0.003022,61119.0,61118.0,0.18660468]
[1724393152313,0.003022,61119.0,61118.0,0.35022168]
[1724393152516,0.003022,61119.0,61118.0,0.35208242]
[1724393154598,0.003022,61119.0,61118.0,0.18846542]
[1724393155540,0.003022,61119.0,61118.0,0.35208242]
[1724393156165,0.003022,61119.0,61118.0,0.41765742]
[1724393159109,0.003022,61119.0,61118.0,0.09514042]
[1724393159259,0.003022,61119.0,61118.0,0.03303032]
[1724393159885,0.003022,61119.0,61118.0,0.03403032]
[1724393160090,0.003022,61119.0,61118.0,0.03303032]
[1724393160781,0.003022,61119.0,61118.0,0.03403032]
[1724393160981,0.003022,61119.0,61118.0,0.19764732]
[1724393161250,0.003022,61119.0,61118.0,0.61918232]
[1724393161461,0.003022,61119.0,61118.0,1.5325553]
[1724393161640,0.003022,61119.0,61118.0,1.5345553]
[1724393162502,0.002022,61119.0,61118.0,1.5255553]
[1724393162712,0.003022,61119.0,61118.0,1.5355553]
[1724393162928,0.002022,61119.0,61118.0,1.1973203]
[1724393163139,0.002022,61119.0,61118.0,1.2083203]
[1724393164688,0.002022,61119.0,61118.0,0.69408232]
[1724393164905,0.002022,61119.0,61118.0,0.36384732]
[1724393165276,0.002022,61119.0,61118.0,0.69208232]
[1724393165855,0.002022,61119.0,61118.0,0.69408232]
[1724393166660,0.002022,61119.0,61118.0,0.03403032]
[1724393167948,0.001022,61119.0,61118.0,0.02403032]
[1724393168257,0.001022,61119.0,61118.0,0.02903032]
[1724393168463,0.001022,61119.0,61118.0,0.01803032]
[1724393168872,0.001022,61119.0,61118.0,0.01303032]
[1724393169287,0.001022,61119.0,61118.0,0.01803032]
[1724393169685,0.002022,61119.0,61118.0,0.02503032]
[1724393170068,0.002022,61119.0,61118.0,0.02603032]
[1724393170273,0.002022,61119.0,61118.0,0.02503032]
[1724393170483,0.002022,61119.0,61118.0,0.02603032]
[1724393170630,0.002022,61119.0,61118.0,0.19291971]
[1724393170840,0.002022,61119.0,61118.0,0.9228892]
[1724393171245,0.002022,61119.0,61118.0,0.59238232]
[1724393171631,0.002022,61119.0,61118.0,0.02503032]
[1724393172714,0.4726,61130.0,61118.0,0.02503032]
[1724393172715,0.054098,61130.0,61118.0,0.02503032]
[1724393172915,0.16359,61129.0,61118.0,0.0129031]
[1724393173126,0.163591,61128.0,61118.0,0.0129031]
[1724393173321,0.163588,61129.0,61118.0,0.0129031]
[1724393173755,0.054098,61130.0,61118.0,0.0129031]
[1724393173937,0.054098,61130.0,61118.0,0.0059031]
[1724393174137,0.054098,61130.0,61119.0,0.01119268]
[1724393174410,0.004,61129.0,61119.0,0.01119268]
[1724393175451,0.000823,61119.0,61118.0,0.0019031]
[1724393175681,0.000823,61119.0,61118.0,0.0009031]
[1724393176998,0.000823,61119.0,61118.0,0.0139031]
[1724393177409,0.000823,61119.0,61118.0,0.0129031]
[1724393178642,0.000823,61119.0,61118.0,0.0159031]
[1724393178791,0.000823,61119.0,61118.0,0.1103031]
[1724393179206,0.000823,61119.0,61118.0,0.1073031]
[1724393179814,0.000823,61119.0,61118.0,0.0129031]
[1724393180806,0.093123,61119.0,61118.0,0.0129031]
[1724393181516,0.167223,61119.0,61118.0,0.0129031]
[1724393182201,0.330838,61119.0,61118.0,0.0129031]
[1724393182422,0.658068,61119.0,61118.0,0.0129031]
[1724393182571,0.985298,61119.0,61118.0,0.0129031]
[1724393183011,1.085298,61119.0,61118.0,0.0079031]
[1724393183630,1.087298,61119.0,61118.0,0.0009031]
[1724393183782,1.8938086,61119.0,61118.0,0.0019031]
[1724393184326,2.171758,61119.0,61118.0,0.0019031]
[1724393184485,2.34173678,61119.0,61118.0,0.0029031]
[1724393184687,2.33573678,61119.0,61118.0,0.0019031]
[1724393184928,2.32873678,61119.0,61118.0,0.0009031]
[1724393185131,2.34173678,61119.0,61118.0,0.0029031]
[1724393185306,2.34173678,61119.0,61118.0,0.0019031]
[1724393185509,2.33573678,61119.0,61118.0,0.0019031]
[1724393185978,2.33573678,61119.0,61106.0,0.0074653]
[1724393185979,0.984735,61107.0,61106.0,0.0074653]
[1724393186192,1.28589366,61107.0,61106.0,0.0074653]
[1724393186307,1.61318766,61107.0,61106.0,0.0074653]
[1724393186735,1.61318766,61107.0,61106.0,0.0009053]
[1724393187139,1.28589366,61107.0,61106.0,0.0009053]
[1724393187348,1.28489366,61107.0,61106.0,0.0009053]
[1724393187595,1.29289366,61107.0,61106.0,0.0009053]
[1724393188386,1.28589366,61107.0,61106.0,0.0009053]
[1724393188587,1.29389366,61107.0,61106.0,0.0009053]
[1724393188834,1.30189366,61107.0,61106.0,0.0019053]
[1724393189036,0.97459966,61107.0,61106.0,0.0019053]
[1724393189251,0.96659966,61107.0,61106.0,0.0009053]
[1724393189788,1.08318492,61107.0,61106.0,0.0009053]
[1724393189995,1.40247892,61107.0,61106.0,0.0009053]
[1724393190195,1.76177292,61107.0,61106.0,0.0009053]
[1724393190401,1.8840728,61107.0,61106.0,0.0009053]
[1724393190759,1.77277292,61107.0,61106.0,0.0019053]
[1724393191134,1.76377292,61107.0,61106.0,0.0019053]
[1724393191357,1.76177292,61107.0,61106.0,0.0009053]
[1724393191507,1.88386292,61107.0,61106.0,0.0009053]
[1724393191862,1.89486846,61107.0,61106.0,0.0019053]
[1724393192363,1.77277292,61107.0,61106.0,0.0019053]
[1724393193240,2.35232438,61107.0,61106.0,0.0019053]
[1724393193459,2.26872292,61107.0,61106.0,0.0019053]
[1724393193673,2.25772292,61107.0,61106.0,0.0009053]
[1724393194060,2.27172292,61107.0,61106.0,0.0009053]
[1724393194255,2.34488955,61107.0,61106.0,0.0009053]
[1724393194458,2.33088955,61107.0,61106.0,0.0009053]
[1724393194858,2.34488955,61107.0,61106.0,0.0009053]
[1724393195229,2.34488955,61107.0,61073.0,0.163737]
[1724393195230,0.402,61100.0,61072.0,0.0933]
[1724393195456,2.28457044,61100.0,61073.0,0.001]
[1724393195655,2.28457044,61100.0,61072.0,0.0933]
[1724393195656,2.73490244,61100.0,61085.0,0.006563]
[1724393195882,3.06223444,61100.0,61085.0,0.006563]
[1724393196635,3.07623444,61100.0,61085.0,0.006563]
[1724393197007,3.09023444,61100.0,61085.0,0.006563]
[1724393197389,3.09803491,61100.0,61085.0,0.006563]
[1724393198005,3.07503491,61100.0,61085.0,0.006563]
[1724393198720,3.10072278,61100.0,61085.0,0.006563]
[1724393198922,2.77339078,61100.0,61085.0,0.006563]
[1724393199069,2.77166834,61100.0,61085.0,0.006563]
[1724393202466,3.1691538,61100.0,61085.0,0.006563]
[1724393202883,2.8418218,61100.0,61085.0,0.006563]
[1724393203084,3.1691538,61100.0,61085.0,0.006563]
[1724393203487,2.8418218,61100.0,61085.0,0.006563]
[1724393203697,2.77166834,61100.0,61085.0,0.006563]
[1724393204107,3.09900034,61100.0,61085.0,0.006563]
[1724393206536,3.12200034,61100.0,61085.0,0.006563]
[1724393207351,3.44933234,61100.0,61085.0,0.006563]
[1724393207564,3.28770156,61100.0,61085.0,0.006563]
[1724393207975,3.61503356,61100.0,61085.0,0.006563]
[1724393208364,3.61503356,61100.0,61077.0,0.0878]
[1724393208934,3.61503356,61100.0,61079.0,0.065629]
[1724393209134,3.61503356,61100.0,61077.0,0.0878]
[1724393209477,3.61503356,61100.0,61079.0,0.065629]
[1724393209679,3.61503356,61100.0,61077.0,0.0878]
[1724393210087,3.12372278,61100.0,61079.0,0.065629]
[1724393211808,3.12372278,61100.0,61088.0,0.0918]
[1724393212016,2.77339078,61100.0,61088.0,0.0918]
[1724393212399,3.10072278,61100.0,61088.0,0.0918]
[1724393213020,2.77339078,61100.0,61088.0,0.0918]
[1724393213237,2.60876834,61100.0,61088.0,0.0918]
[1724393217173,2.77274712,61100.0,61088.0,0.0918]
[1724393217686,2.28143634,61100.0,61088.0,0.0918]
[1724393217896,0.55243834,61100.0,61099.0,0.1049042]
[1724393218141,0.54463787,61100.0,61099.0,0.1049042]
[1724393218539,0.70830387,61100.0,61099.0,0.1049042]
[1724393218766,0.70830387,61100.0,61099.0,0.0009042]
[1724393218966,0.69430387,61100.0,61099.0,0.0009042]
[1724393219168,0.53063787,61100.0,61099.0,0.0009042]
[1724393219373,0.63063787,61100.0,61099.0,0.0009042]
[1724393219752,0.78030387,61100.0,61099.0,0.0009042]
[1724393219954,0.79030387,61100.0,61099.0,0.0009042]
[1724393220177,0.80230387,61100.0,61099.0,0.0009042]
[1724393220371,1.28161465,61100.0,61099.0,0.0009042]
[1724393220612,1.44696787,61100.0,61099.0,0.0009042]
[1724393220814,1.45496787,61100.0,61099.0,0.0009042]
[1724393221013,1.78229987,61100.0,61099.0,0.0009042]
[1724393221751,1.88769987,61100.0,61099.0,0.0009042]
[1724393223667,2.28769987,61100.0,61099.0,0.0009042]
[1724393223879,2.45167865,61100.0,61099.0,0.0009042]
[1724393225262,2.36095503,61100.0,61099.0,0.0009042]
[1724393225992,2.28769987,61100.0,61099.0,0.0009042]
[1724393226927,2.4097918,61100.0,61099.0,0.0009042]
[1724393227265,2.28769987,61100.0,61099.0,0.0009042]
[1724393229210,2.43421019,61100.0,61099.0,0.0009042]
[1724393229453,2.32881019,61100.0,61099.0,0.0009042]
[1724393229654,1.85496787,61100.0,61099.0,0.0009042]
[1724393232311,2.18229987,61100.0,61099.0,0.0009042]
[1724393232513,2.00147819,61100.0,61099.0,0.0009042]
[1724393232926,1.85496787,61100.0,61099.0,0.0009042]
[1724393233180,2.18229987,61100.0,61099.0,0.0009042]
[1724393239870,2.30129987,61100.0,61099.0,0.0009042]
[1724393239999,2.37819987,61100.0,61099.0,0.0009042]
[1724393240349,2.70553187,61100.0,61099.0,0.00084764]
[1724393240554,2.86951065,61100.0,61099.0,0.00084764]
[1724393240785,2.85951065,61100.0,61099.0,0.00084764]
[1724393240992,2.85951065,61100.0,61081.0,0.1017]
[1724393240993,0.81857,61082.0,61081.0,0.1017]
[1724393241202,1.43221815,61082.0,61081.0,0.1017]
[1724393241408,0.001,61081.0,61077.0,0.103]
[1724393241607,0.26187995,61078.0,61077.0,0.103]
[1724393241810,1.309575,61078.0,61077.0,0.103]
[1724393242010,1.409575,61078.0,61077.0,0.103]
[1724393242215,0.163735,61074.0,61073.0,0.1747]
[1724393242453,1.18027556,61074.0,61073.0,0.1747]
[1724393243255,1.082156,61074.0,61073.0,0.1747]
[1724393243669,0.754685,61074.0,61073.0,0.1747]
[1724393243869,0.66452088,61074.0,61073.0,0.1747]
[1724393244073,0.66552088,61074.0,61073.0,0.1747]
[1724393244226,0.755685,61074.0,61073.0,0.1747]
[1724393244431,1.085156,61074.0,61073.0,0.0969]
[1724393244629,0.329494,61070.0,61062.0,0.0798]
[1724393244858,0.163765,61063.0,61062.0,0.145446]
[1724393245038,0.654715,61063.0,61062.0,0.250546]
[1724393245212,0.654715,61063.0,61062.0,0.1849]
[1724393245676,0.982245,61063.0,61062.0,0.1051]
[1724393246083,0.163774,61060.0,61056.0,0.106142]
[1724393246288,0.59095,61059.0,61056.0,0.106142]
[1724393247314,0.754726,61059.0,61056.0,0.106142]
[1724393247519,0.59195,61059.0,61056.0,0.106142]
[1724393248063,0.755726,61059.0,61056.0,0.106142]
[1724393248296,0.59195,61059.0,61056.0,0.106142]
[1724393249556,0.59195,61059.0,61058.0,0.1038]
[1724393250064,0.59195,61059.0,61058.0,0.11508489]
[1724393250460,0.49195,61059.0,61058.0,0.19578489]
[1724393250798,0.49095,61059.0,61058.0,0.19578489]
[1724393251348,0.49195,61059.0,61058.0,0.19778489]
[1724393251487,0.49195,61059.0,61058.0,0.36156289]
[1724393251687,0.49195,61059.0,61058.0,0.19778489]
[1724393252530,0.49195,61059.0,61058.0,0.36156289]
[1724393252734,0.49195,61059.0,61058.0,0.68911989]
[1724393254692,0.49195,61059.0,61058.0,1.01667689]
[1724393255105,0.49195,61059.0,61058.0,0.68911989]
[1724393256019,0.51764339,61059.0,61058.0,1.01667689]
[1724393256160,0.51764339,61059.0,61058.0,0.68911989]
[1724393256382,0.51664339,61059.0,61058.0,0.68911989]
[1724393256750,0.51764339,61059.0,61058.0,0.68911989]
[1724393257281,0.51664339,61059.0,61058.0,0.68911989]
[1724393258093,0.51764339,61059.0,61058.0,0.68911989]
[1724393258506,0.51764339,61059.0,61058.0,0.68906217]
[1724393258935,0.54333613,61059.0,61058.0,0.68906217]
[1724393259509,0.54333613,61059.0,61058.0,0.68996857]
[1724393262633,0.54333613,61059.0,61058.0,1.01752557]
[1724393262932,0.54333613,61059.0,61058.0,0.68996857]
[1724393263581,0.54333613,61059.0,61058.0,1.01752557]
[1724393264199,0.54333613,61059.0,61058.0,1.34508257]
[1724393264347,0.54333613,61059.0,61058.0,1.36808257]
[1724393264546,0.54333613,61059.0,61058.0,1.63208555]
[1724393264753,0.54333613,61059.0,61058.0,1.97858357]
[1724393264754,0.51764339,61059.0,61058.0,1.97858357]
[1724393265551,0.51764339,61059.0,61058.0,2.02755046]
[1724393265733,0.51764339,61059.0,61058.0,1.69999346]
[1724393265966,0.51764339,61059.0,61058.0,1.65102657]
[1724393266153,0.51864339,61059.0,61058.0,1.98058357]
[1724393266389,0.51864339,61059.0,61058.0,1.92258357]
[1724393266390,0.34944339,61059.0,61058.0,1.92258357]
[1724393266517,0.34744339,61059.0,61058.0,1.91958357]
[1724393266716,0.02669339,61059.0,61058.0,1.92158357]
[1724393267301,0.02669339,61059.0,61058.0,1.92258357]
[1724393267504,0.02769339,61059.0,61058.0,1.92858357]
[1724393267800,0.02669339,61059.0,61058.0,1.90464255]
[1724393268204,0.02769339,61059.0,61058.0,1.93458169]
[1724393268837,0.02769339,61059.0,61058.0,1.95252083]
[1724393271156,0.02769339,61059.0,61058.0,1.93458169]
[1724393271357,0.02769339,61059.0,61058.0,1.95252014]
[1724393272643,0.02769339,61059.0,61058.0,1.62396314]
[1724393272858,0.002,61059.0,61058.0,1.62396314]
[1724393273065,0.002824,61059.0,61058.0,1.62296314]
[1724393274390,0.02851258,61059.0,61058.0,1.62296314]
[1724393277087,0.02851258,61059.0,61058.0,1.605024]
[1724393277961,0.02851258,61059.0,61058.0,1.933581]
[1724393278214,0.02851258,61059.0,61058.0,1.606024]
[1724393278448,0.02851258,61059.0,61058.0,1.6549776]
[1724393278958,0.02851258,61059.0,61058.0,1.9825346]
[1724393279186,0.02851258,61059.0,61058.0,1.933581]
[1724393279666,0.02851258,61059.0,61058.0,1.93358121]
[1724393279945,0.02851258,61059.0,61058.0,1.60602421]
[1724393280200,0.02851258,61059.0,61058.0,2.01307575]
[1724393280437,0.0196024,61059.0,61058.0,1.96612215]
[1724393280710,0.2925,61065.0,61064.0,1.476862]
[1724393280959,0.2925,61065.0,61064.0,2.10676162]
[1724393281268,0.2925,61065.0,61064.0,2.12095116]
[1724393282456,0.2925,61065.0,61064.0,2.13495116]
[1724393282457,0.2935,61065.0,61064.0,2.13495116]
[1724393282942,0.2925,61065.0,61064.0,2.12095116]
[1724393283184,0.2935,61065.0,61064.0,2.13495116]
[1724393283447,0.32018556,61065.0,61064.0,2.14895116]
[1724393283702,0.31918556,61065.0,61064.0,2.13495116]
[1724393283947,0.31884322,61065.0,61064.0,2.13476162]
[1724393284178,0.31884322,61065.0,61064.0,2.14889739]
[1724393284682,0.31966722,61065.0,61064.0,2.14889739]
[1724393285187,0.31936722,61065.0,61064.0,2.14889739]
[1724393285436,0.31936722,61065.0,61064.0,2.18221172]
[1724393285947,0.31936722,61065.0,61064.0,2.16427374]
[1724393286207,0.31936722,61065.0,61064.0,2.19751098]
[1724393286458,0.31936722,61065.0,61064.0,2.54537307]
[1724393286707,0.31936722,61065.0,61064.0,2.52303606]
[1724393286944,0.31629853,61065.0,61064.0,2.57399881]
[1724393287153,0.29268166,61065.0,61064.0,2.57399881]
[1724393287356,0.0798,61097.0,61096.0,0.492029]
[1724393287805,0.0798,61097.0,61096.0,0.51050045]
[1724393288007,0.10547897,61097.0,61096.0,0.51050045]
[1724393288642,0.10547897,61097.0,61096.0,0.18314745]
[1724393288882,0.10647897,61097.0,61096.0,0.02447145]
[1724393289302,0.10647897,61097.0,61096.0,0.008]
[1724393289517,0.10647897,61097.0,61096.0,0.02104102]
[1724393289722,0.21017897,61097.0,61096.0,0.014]
[1724393290148,0.21017897,61097.0,61096.0,0.008]
[1724393290364,0.21017897,61097.0,61096.0,0.01304102]
[1724393290365,0.20917897,61097.0,61096.0,0.01304102]
[1724393290580,0.21017897,61097.0,61096.0,0.017]
[1724393290795,0.21017897,61097.0,61096.0,0.01804102]
[1724393291210,0.21117897,61097.0,61096.0,0.02704102]
[1724393292678,0.21117897,61097.0,61096.0,0.014]
[1724393292853,0.21117897,61097.0,61096.0,0.02704102]
[1724393296798,0.21200297,61097.0,61096.0,0.02704102]
[1724393297727,0.21200297,61097.0,61096.0,0.09264502]
[1724393301193,0.21200297,61097.0,61096.0,0.09364502]
[1724393301395,0.21200297,61097.0,61096.0,0.09564502]
[1724393303659,0.163639,61110.0,61097.0,0.01015422]
[1724393303861,0.163639,61110.0,61097.0,0.09232485]
[1724393304720,0.163639,61110.0,61097.0,0.12303345]
[1724393305348,0.168639,61110.0,61097.0,0.12403345]
[1724393305766,0.01276206,61110.0,61097.0,0.12503345]
[1724393305971,0.01276206,61110.0,61097.0,0.12303345]
[1724393306171,0.01276206,61110.0,61098.0,0.0130039]
[1724393306815,0.0821,61108.0,61098.0,0.0130039]
[1724393308060,0.0851,61108.0,61098.0,0.0130039]
[1724393308273,0.0821,61108.0,61098.0,0.0130039]
[1724393308689,0.08051301,61105.0,61098.0,0.0130039]
[1724393308895,0.08051301,61102.0,61098.0,0.0130039]
[1724393309104,0.194,61101.0,61098.0,0.0140039]
[1724393309355,0.00776206,61110.0,61098.0,0.0140039]
[1724393309356,0.08051301,61099.0,61098.0,0.0140039]
[1724393309561,0.08051301,61099.0,61098.0,0.0130039]
[1724393309562,0.24418101,61099.0,61098.0,0.0130039]
[1724393309772,0.34418101,61099.0,61098.0,0.0130039]
[1724393309975,0.34418101,61099.0,61097.0,0.0307086]
[1724393310181,0.14980542,61099.0,61084.0,0.001]
[1724393310392,0.14980542,61099.0,61083.0,0.163709]
[1724393310393,0.08051301,61090.0,61085.0,0.003]
[1724393310599,0.30138771,61099.0,61085.0,0.01300072]
[1724393310802,0.163672,61098.0,61085.0,0.065614]
[1724393311405,0.30912132,61099.0,61085.0,0.065614]
[1724393311406,0.163674,61097.0,61085.0,0.065614]
[1724393311639,0.163677,61096.0,61085.0,0.075614]
[1724393311863,0.163674,61097.0,61085.0,0.075614]
[1724393312084,0.163674,61097.0,61085.0,0.065614]
[1724393312294,0.1919,61096.0,61085.0,0.065614]
[1724393312543,0.1919,61096.0,61085.0,0.066614]
[1724393312784,0.1919,61096.0,61086.0,0.01299941]
[1724393313075,0.1919,61096.0,61086.0,0.01516598]
[1724393313709,0.1919,61096.0,61087.0,0.001]
[1724393314110,0.1919,61096.0,61088.0,0.01516249]
[1724393314348,0.163677,61096.0,61088.0,0.01516249]
[1724393314554,0.30912132,61099.0,61085.0,0.05693053]
[1724393314555,0.1898,61094.0,61085.0,0.05693053]
[1724393314774,0.517165,61094.0,61085.0,0.05293053]
[1724393314988,0.163688,61092.0,61085.0,0.05293053]
[1724393315199,0.1906,61089.0,61078.0,0.001]
[1724393315419,0.354296,61089.0,61078.0,0.001]
[1724393315638,0.354296,61089.0,61086.0,0.001]
[1724393316044,0.354296,61089.0,61079.0,0.065623]
[1724393316255,0.163698,61088.0,61079.0,0.065623]
[1724393316459,0.1906,61089.0,61079.0,0.065623]
[1724393316666,0.1637,61088.0,61080.0,0.01523744]
[1724393316869,0.163702,61087.0,61079.0,0.065623]
[1724393317102,0.1906,61089.0,61079.0,0.065623]
[1724393317528,0.1903,61086.0,61079.0,0.065623]
[1724393317732,0.49114,61085.0,61079.0,0.065623]
[1724393319215,0.49214,61085.0,61079.0,0.065623]
[1724393321397,0.0801,61082.0,61079.0,0.065623]
[1724393321599,0.59994,61081.0,61069.0,0.1118064]
[1724393321806,0.59994,61081.0,61073.0,0.065628]
[1724393322017,0.59994,61081.0,61079.0,0.0009053]
[1724393324621,0.59994,61081.0,61079.0,0.0019053]
[1724393325035,0.59994,61081.0,61079.0,0.0059053]
[1724393325666,0.49114,61081.0,61079.0,0.0059053]
[1724393326335,0.49114,61081.0,61080.0,0.0152947]
[1724393326737,0.49114,61081.0,61079.0,0.0059053]
[1724393327190,0.49114,61081.0,61080.0,0.0152947]
[1724393327616,0.49114,61081.0,61079.0,0.0059053]
[1724393327823,0.49114,61081.0,61080.0,0.001]
[1724393328051,0.49114,61081.0,61080.0,0.01635076]
[1724393328266,0.49114,61081.0,61080.0,0.02035076]
[1724393328474,0.49114,61081.0,61080.0,0.01935076]
[1724393329100,0.49114,61081.0,61080.0,0.005]
[1724393329302,0.49114,61081.0,61080.0,0.930897]
[1724393329516,0.49114,61081.0,61080.0,0.61880876]
[1724393329951,0.49114,61081.0,61080.0,0.12765076]
[1724393330172,0.49114,61081.0,61080.0,0.12465076]
[1724393330381,0.49114,61081.0,61080.0,0.28836976]
[1724393330794,0.49114,61081.0,61080.0,0.12465076]
[1724393331240,0.49114,61081.0,61080.0,0.12565076]
[1724393332139,0.49114,61081.0,61080.0,0.37386976]
[1724393333406,0.49114,61081.0,61080.0,0.12865076]
[1724393333634,0.49114,61081.0,61080.0,0.12565076]
[1724393334671,0.49114,61081.0,61080.0,0.12665076]
[1724393334906,0.49114,61081.0,61080.0,0.29236976]
[1724393335113,0.49114,61081.0,61080.0,0.12865076]